[Event "Titled Tuesday Blitz May 16 Late 2023"]
[White "reevecanada"]
[Black "Haszon, David"]
[BlackFideId "733610"]
[WhiteElo "2410"]
[BlackElo "2210"]
[Result "0-1"]
[Round "05"]
[TimeControl "180+2"]
[Date "2023.05.16"]
[WhiteClock "0:00:05"]
[BlackClock "0:00:34"]

1. e4 {[%clk 0:02:51]}  c5 {[%clk 0:02:59]} 2. Nf3 {[%clk 0:02:50]}  e6 {[%clk 0:02:58]} 3. b3 {[%clk 0:02:49]}  d5 {[%clk 0:02:57]} 4. exd5 {[%clk 0:02:48]}  exd5 {[%clk 0:02:58]} 5. Bb5+ {[%clk 0:02:48]}  Nc6 {[%clk 0:02:57]} 6. O-O {[%clk 0:02:47]}  Be7 {[%clk 0:02:56]} 7. Re1 {[%clk 0:02:47]}  Nf6 {[%clk 0:02:55]} 8. Qe2 {[%clk 0:02:46]}  Be6 {[%clk 0:02:55]} 9. Bb2 {[%clk 0:02:44]}  O-O {[%clk 0:02:53]} 10. Bxc6 {[%clk 0:02:43]}  bxc6 {[%clk 0:02:53]} 11. Ng5 {[%clk 0:02:44]}  Kh8 {[%clk 0:02:33]} 12. Nxe6 {[%clk 0:02:43]}  fxe6 {[%clk 0:02:34]} 13. Qxe6 {[%clk 0:02:42]}  Ne4 {[%clk 0:02:34]} 14. d3 {[%clk 0:02:20]}  Bf6 {[%clk 0:02:26]} 15. Bxf6 {[%clk 0:02:19]}  Rxf6 {[%clk 0:02:27]} 16. Qe5 {[%clk 0:02:18]}  Nxf2 {[%clk 0:02:21]} 17. Nd2 {[%clk 0:02:14]}  Ng4 {[%clk 0:02:19]} 18. Qg5 {[%clk 0:02:12]}  Rf1+ {[%clk 0:02:10]} 19. Nxf1 {[%clk 0:02:08]}  Qxg5 {[%clk 0:02:11]} 20. Re6 {[%clk 0:02:07]}  Qf5 {[%clk 0:02:02]} 21. Rae1 {[%clk 0:02:04]}  h6 {[%clk 0:01:56]} 22. h3 {[%clk 0:02:01]}  Qf2+ {[%clk 0:01:53]} 23. Kh1 {[%clk 0:01:59]}  Nf6 {[%clk 0:01:52]} 24. R6e2 {[%clk 0:01:58]}  Qf4 {[%clk 0:01:45]} 25. Re6 {[%clk 0:01:51]}  c4 {[%clk 0:01:34]} 26. dxc4 {[%clk 0:01:47]}  dxc4 {[%clk 0:01:34]} 27. Rxc6 {[%clk 0:01:38]}  Qf2 {[%clk 0:01:22]} 28. Rce6 {[%clk 0:01:35]}  Qxc2 {[%clk 0:01:21]} 29. Ne3 {[%clk 0:01:32]}  Qxa2 {[%clk 0:01:18]} 30. bxc4 {[%clk 0:01:33]}  Re8 {[%clk 0:01:13]} 31. Rxe8+ {[%clk 0:01:17]}  Nxe8 {[%clk 0:01:14]} 32. Nf1 {[%clk 0:01:07]}  Nf6 {[%clk 0:01:08]} 33. Rc1 {[%clk 0:00:59]}  Qb2 {[%clk 0:01:04]} 34. Rd1 {[%clk 0:00:55]}  Qc3 {[%clk 0:01:03]} 35. Rd8+ {[%clk 0:00:53]}  Kh7 {[%clk 0:01:03]} 36. Rc8 {[%clk 0:00:51]}  a5 {[%clk 0:01:03]} 37. c5 {[%clk 0:00:51]}  a4 {[%clk 0:01:03]} 38. c6 {[%clk 0:00:51]}  Nd5 {[%clk 0:01:01]} 39. h4 {[%clk 0:00:28]}  a3 {[%clk 0:01:00]} 40. Ra8 {[%clk 0:00:25]}  Nb6 {[%clk 0:00:56]} 41. Ra7 {[%clk 0:00:18]}  Qxc6 {[%clk 0:00:52]} 42. Rxa3 {[%clk 0:00:17]}  Nd5 {[%clk 0:00:52]} 43. Rf3 {[%clk 0:00:16]}  Nf6 {[%clk 0:00:50]} 44. Kh2 {[%clk 0:00:16]}  Ng4+ {[%clk 0:00:50]} 45. Kg3 {[%clk 0:00:15]}  Ne5 {[%clk 0:00:49]} 46. Re3 {[%clk 0:00:14]}  Qg6+ {[%clk 0:00:49]} 47. Kh3 {[%clk 0:00:13]}  Qf5+ {[%clk 0:00:48]} 48. Kg3 {[%clk 0:00:12]}  Qg4+ {[%clk 0:00:46]} 49. Kh2 {[%clk 0:00:10]}  Qxh4+ {[%clk 0:00:46]} 50. Kg1 {[%clk 0:00:11]}  Qd4 {[%clk 0:00:44]} 51. Kh1 {[%clk 0:00:10]}  Ng4 {[%clk 0:00:43]} 52. Rf3 {[%clk 0:00:10]}  Qc5 {[%clk 0:00:37]} 53. Nd2 {[%clk 0:00:06]}  Qh5+ {[%clk 0:00:36]} 54. Kg1 {[%clk 0:00:07]}  Qh2+ {[%clk 0:00:35]} 55. Kf1 {[%clk 0:00:07]}  Qh1+ {[%clk 0:00:35]} 56. Ke2 {[%clk 0:00:08]}  Qxg2+ {[%clk 0:00:35]} 57. Kd3 {[%clk 0:00:05]}  Ne5+ {[%clk 0:00:34]} 0-1


[Site "https://www.chess.com"]

[Event "Titled Tuesday Blitz May 16 Late 2023"]
[White "Potapova, Margarita"]
[Black "Abduzhaparov"]
[WhiteFideId "14126869"]
[WhiteElo "2244"]
[BlackElo "2392"]
[Result "1-0"]
[Round "05"]
[TimeControl "180+2"]
[Date "2023.05.16"]
[WhiteClock "0:01:30"]
[BlackClock "0:00:22"]

1. Nf3 {[%clk 0:02:59]}  d6 {[%clk 0:02:59]} 2. g3 {[%clk 0:02:58]}  e5 {[%clk 0:02:58]} 3. Bg2 {[%clk 0:02:56]}  h5 {[%clk 0:02:55]} 4. d3 {[%clk 0:02:53]}  Be7 {[%clk 0:02:53]} 5. Nc3 {[%clk 0:02:52]}  h4 {[%clk 0:02:53]} 6. gxh4 {[%clk 0:02:49]}  Bxh4 {[%clk 0:02:51]} 7. Nxh4 {[%clk 0:02:49]}  Rxh4 {[%clk 0:02:48]} 8. Be3 {[%clk 0:02:33]}  c6 {[%clk 0:02:44]} 9. Qd2 {[%clk 0:02:34]}  f6 {[%clk 0:02:40]} 10. O-O-O {[%clk 0:02:32]}  d5 {[%clk 0:02:35]} 11. d4 {[%clk 0:02:31]}  e4 {[%clk 0:02:33]} 12. f3 {[%clk 0:02:30]}  Bf5 {[%clk 0:02:10]} 13. fxe4 {[%clk 0:02:26]}  dxe4 {[%clk 0:02:09]} 14. d5 {[%clk 0:02:26]}  Ne7 {[%clk 0:02:00]} 15. d6 {[%clk 0:02:25]}  Ng6 {[%clk 0:01:55]} 16. Rhf1 {[%clk 0:02:15]}  Qd7 {[%clk 0:01:55]} 17. Na4 {[%clk 0:02:08]}  b6 {[%clk 0:01:50]} 18. Qb4 {[%clk 0:01:52]}  Na6 {[%clk 0:01:45]} 19. Qc4 {[%clk 0:01:49]}  b5 {[%clk 0:01:35]} 20. Qg8+ {[%clk 0:01:49]}  Nf8 {[%clk 0:01:35]} 21. Rxf5 {[%clk 0:01:42]}  bxa4 {[%clk 0:01:15]} 22. Ra5 {[%clk 0:01:39]}  Nb4 {[%clk 0:00:47]} 23. Rxa4 {[%clk 0:01:35]}  Nd5 {[%clk 0:00:47]} 24. Bf2 {[%clk 0:01:31]}  Rxh2 {[%clk 0:00:44]} 25. Rxe4+ {[%clk 0:01:30]}  Ne7 {[%clk 0:00:25]} 26. Rxe7+ {[%clk 0:01:29]}  Qxe7 {[%clk 0:00:22]} 27. dxe7 {[%clk 0:01:30]} 1-0


[Site "https://www.chess.com"]

[Event "Titled Tuesday Blitz May 16 Late 2023"]
[White "Perske, Thore"]
[Black "Vaglio Munoz, Jaime"]
[WhiteFideId "12902195"]
[BlackFideId "6500145"]
[WhiteElo "2336"]
[BlackElo "2199"]
[Result "1-0"]
[Round "05"]
[TimeControl "180+2"]
[Date "2023.05.16"]
[WhiteClock "0:00:09"]
[BlackClock "0:00:19"]

1. d4 {[%clk 0:03:00]}  c6 {[%clk 0:02:59]} 2. g3 {[%clk 0:03:00]}  d5 {[%clk 0:02:53]} 3. Bg2 {[%clk 0:03:00]}  Bf5 {[%clk 0:02:53]} 4. Nf3 {[%clk 0:03:00]}  e6 {[%clk 0:02:53]} 5. c4 {[%clk 0:03:00]}  b5 {[%clk 0:02:51]} 6. b3 {[%clk 0:02:36]}  Bxb1 {[%clk 0:02:45]} 7. Rxb1 {[%clk 0:02:35]}  Qa5+ {[%clk 0:02:43]} 8. Bd2 {[%clk 0:02:28]}  Bb4 {[%clk 0:02:41]} 9. O-O {[%clk 0:02:00]}  Bxd2 {[%clk 0:02:38]} 10. Qxd2 {[%clk 0:02:00]}  Qxd2 {[%clk 0:02:37]} 11. Nxd2 {[%clk 0:02:01]}  Nf6 {[%clk 0:02:37]} 12. e4 {[%clk 0:02:01]}  O-O {[%clk 0:02:16]} 13. Rfe1 {[%clk 0:01:34]}  Nbd7 {[%clk 0:01:52]} 14. e5 {[%clk 0:01:18]}  Ne8 {[%clk 0:01:50]} 15. f4 {[%clk 0:01:17]}  g6 {[%clk 0:01:49]} 16. g4 {[%clk 0:01:06]}  a5 {[%clk 0:01:47]} 17. c5 {[%clk 0:01:02]}  Ng7 {[%clk 0:01:40]} 18. h3 {[%clk 0:00:55]}  f6 {[%clk 0:01:40]} 19. Rf1 {[%clk 0:00:44]}  h5 {[%clk 0:01:31]} 20. Kh2 {[%clk 0:00:41]}  hxg4 {[%clk 0:01:25]} 21. hxg4 {[%clk 0:00:41]}  f5 {[%clk 0:01:18]} 22. g5 {[%clk 0:00:21]}  b4 {[%clk 0:01:15]} 23. Bf3 {[%clk 0:00:19]}  Kf7 {[%clk 0:01:13]} 24. Kg3 {[%clk 0:00:19]}  Rh8 {[%clk 0:01:12]} 25. Rh1 {[%clk 0:00:19]}  Rxh1 {[%clk 0:01:07]} 26. Rxh1 {[%clk 0:00:19]}  a4 {[%clk 0:01:07]} 27. Kf2 {[%clk 0:00:10]}  axb3 {[%clk 0:01:06]} 28. axb3 {[%clk 0:00:10]}  Ra2 {[%clk 0:01:05]} 29. Ke3 {[%clk 0:00:11]}  Nf8 {[%clk 0:00:53]} 30. Rh8 {[%clk 0:00:10]}  Ne8 {[%clk 0:00:52]} 31. Rh6 {[%clk 0:00:10]}  Nc7 {[%clk 0:00:51]} 32. Be2 {[%clk 0:00:10]}  Rb2 {[%clk 0:00:48]} 33. Rh1 {[%clk 0:00:10]}  Ra2 {[%clk 0:00:47]} 34. Kd3 {[%clk 0:00:10]}  Nb5 {[%clk 0:00:46]} 35. Ke3 {[%clk 0:00:05]}  Nxd4 {[%clk 0:00:45]} 36. Kxd4 {[%clk 0:00:04]}  Rxd2+ {[%clk 0:00:44]} 37. Bd3 {[%clk 0:00:05]}  Rb2 {[%clk 0:00:43]} 38. Ra1 {[%clk 0:00:05]}  Rxb3 {[%clk 0:00:42]} 39. Ra7+ {[%clk 0:00:06]}  Ke8 {[%clk 0:00:42]} 40. Rc7 {[%clk 0:00:06]}  Nd7 {[%clk 0:00:34]} 41. Rxc6 {[%clk 0:00:06]}  Ke7 {[%clk 0:00:34]} 42. Rc7 {[%clk 0:00:06]}  Kd8 {[%clk 0:00:33]} 43. Rb7 {[%clk 0:00:06]}  Rb2 {[%clk 0:00:33]} 44. Bb5 {[%clk 0:00:04]}  Nf8 {[%clk 0:00:30]} 45. c6 {[%clk 0:00:04]}  Kc8 {[%clk 0:00:29]} 46. Rf7 {[%clk 0:00:05]}  Rc2 {[%clk 0:00:25]} 47. Rxf8+ {[%clk 0:00:04]}  Kc7 {[%clk 0:00:26]} 48. Rf7+ {[%clk 0:00:05]}  Kb6 {[%clk 0:00:26]} 49. Rb7+ {[%clk 0:00:05]}  Ka5 {[%clk 0:00:25]} 50. c7 {[%clk 0:00:06]}  b3 {[%clk 0:00:25]} 51. Bd7 {[%clk 0:00:06]}  b2 {[%clk 0:00:25]} 52. c8=Q {[%clk 0:00:06]}  b1=Q {[%clk 0:00:24]} 53. Rxb1 {[%clk 0:00:06]}  Rc4+ {[%clk 0:00:23]} 54. Qxc4 {[%clk 0:00:05]}  dxc4 {[%clk 0:00:24]} 55. Bxe6 {[%clk 0:00:05]}  c3 {[%clk 0:00:22]} 56. Kxc3 {[%clk 0:00:06]}  Ka4 {[%clk 0:00:20]} 57. Bxf5 {[%clk 0:00:07]}  Ka3 {[%clk 0:00:19]} 58. e6 {[%clk 0:00:08]}  Ka2 {[%clk 0:00:19]} 59. e7 {[%clk 0:00:09]}  Ka3 {[%clk 0:00:19]} 60. Ra1# {[%clk 0:00:09]} 1-0


[Site "https://www.chess.com"]

[Event "Titled Tuesday Blitz May 16 Late 2023"]
[White "Fernandez Siles, Luis"]
[Black "Guz, Ari"]
[WhiteFideId "2209420"]
[BlackFideId "2825759"]
[WhiteElo "2195"]
[BlackElo "2205"]
[Result "0-1"]
[Round "05"]
[TimeControl "180+2"]
[Date "2023.05.16"]
[WhiteClock "0:00:00"]
[BlackClock "0:00:12"]

1. e4 {[%clk 0:03:00]}  Nf6 {[%clk 0:02:11]} 2. e5 {[%clk 0:02:54]}  Nd5 {[%clk 0:02:11]} 3. c4 {[%clk 0:02:54]}  Nb6 {[%clk 0:02:11]} 4. c5 {[%clk 0:02:54]}  Nd5 {[%clk 0:02:11]} 5. d4 {[%clk 0:02:55]}  d6 {[%clk 0:02:10]} 6. cxd6 {[%clk 0:02:53]}  exd6 {[%clk 0:02:09]} 7. Nf3 {[%clk 0:02:37]}  Be7 {[%clk 0:02:06]} 8. Bc4 {[%clk 0:02:35]}  Nb6 {[%clk 0:02:04]} 9. Bb3 {[%clk 0:02:31]}  O-O {[%clk 0:02:04]} 10. h3 {[%clk 0:02:31]}  Nc6 {[%clk 0:02:04]} 11. exd6 {[%clk 0:02:27]}  Bxd6 {[%clk 0:02:04]} 12. O-O {[%clk 0:02:27]}  Bf5 {[%clk 0:02:04]} 13. Nc3 {[%clk 0:02:26]}  Qd7 {[%clk 0:02:03]} 14. Re1 {[%clk 0:01:25]}  h6 {[%clk 0:01:35]} 15. Bc2 {[%clk 0:01:17]}  Rad8 {[%clk 0:01:32]} 16. Bxf5 {[%clk 0:01:16]}  Qxf5 {[%clk 0:01:33]} 17. Be3 {[%clk 0:01:16]}  Nc4 {[%clk 0:01:28]} 18. Qe2 {[%clk 0:01:12]}  Nxe3 {[%clk 0:01:16]} 19. fxe3 {[%clk 0:01:13]}  Rfe8 {[%clk 0:01:12]} 20. e4 {[%clk 0:01:09]}  Qf4 {[%clk 0:01:11]} 21. Rad1 {[%clk 0:00:56]}  Bb4 {[%clk 0:00:49]} 22. a3 {[%clk 0:00:51]}  Ba5 {[%clk 0:00:49]} 23. d5 {[%clk 0:00:41]}  Ne5 {[%clk 0:00:43]} 24. Nxe5 {[%clk 0:00:41]}  Rxe5 {[%clk 0:00:41]} 25. Qf3 {[%clk 0:00:33]}  Qg5 {[%clk 0:00:34]} 26. Kh2 {[%clk 0:00:20]}  Rde8 {[%clk 0:00:32]} 27. b4 {[%clk 0:00:18]}  Bb6 {[%clk 0:00:32]} 28. Na4 {[%clk 0:00:18]}  Qe7 {[%clk 0:00:30]} 29. Nxb6 {[%clk 0:00:18]}  axb6 {[%clk 0:00:30]} 30. Rc1 {[%clk 0:00:17]}  Qd6 {[%clk 0:00:28]} 31. Qg3 {[%clk 0:00:17]}  f5 {[%clk 0:00:22]} 32. Re3 {[%clk 0:00:13]}  g5 {[%clk 0:00:20]} 33. Rec3 {[%clk 0:00:10]}  f4 {[%clk 0:00:18]} 34. Qg4 {[%clk 0:00:10]}  Rxe4 {[%clk 0:00:18]} 35. Rxc7 {[%clk 0:00:08]}  f3+ {[%clk 0:00:18]} 36. Qg3 {[%clk 0:00:07]}  Qxg3+ {[%clk 0:00:15]} 37. Kxg3 {[%clk 0:00:08]}  fxg2 {[%clk 0:00:16]} 38. Kxg2 {[%clk 0:00:08]}  Re2+ {[%clk 0:00:16]} 39. Kf3 {[%clk 0:00:09]}  R8e3+ {[%clk 0:00:14]} 40. Kg4 {[%clk 0:00:08]}  Re7 {[%clk 0:00:13]} 41. d6 {[%clk 0:00:07]}  R7e4+ {[%clk 0:00:12]} 42. Kf5 {[%clk 0:00:04]}  Re5+ {[%clk 0:00:11]} 43. Kg6 {[%clk 0:00:01]}  Re6+ {[%clk 0:00:12]} 44. Kh5 {[%clk 0:00:00]}  Rxd6 {[%clk 0:00:12]} 0-1


[Site "https://www.chess.com"]

[Event "Titled Tuesday Blitz May 16 Late 2023"]
[White "Taboas Rodriguez, Daniel"]
[Black "Harish, Neeraj"]
[WhiteFideId "2208466"]
[BlackFideId "30958130"]
[WhiteElo "2365"]
[BlackElo "1879"]
[Result "1-0"]
[Round "05"]
[TimeControl "180+2"]
[Date "2023.05.16"]
[WhiteClock "0:00:21"]
[BlackClock "0:00:00"]

1. d4 {[%clk 0:02:59]}  Nf6 {[%clk 0:02:58]} 2. Nf3 {[%clk 0:03:00]}  d5 {[%clk 0:02:58]} 3. c4 {[%clk 0:02:57]}  e6 {[%clk 0:02:58]} 4. Bg5 {[%clk 0:02:55]}  Be7 {[%clk 0:02:58]} 5. e3 {[%clk 0:02:54]}  h6 {[%clk 0:02:55]} 6. Bh4 {[%clk 0:02:53]}  O-O {[%clk 0:02:55]} 7. Nc3 {[%clk 0:02:50]}  b6 {[%clk 0:02:49]} 8. Bd3 {[%clk 0:02:47]}  Bb7 {[%clk 0:02:45]} 9. O-O {[%clk 0:02:47]}  c5 {[%clk 0:02:43]} 10. Bg3 {[%clk 0:02:44]}  Nc6 {[%clk 0:02:36]} 11. Rc1 {[%clk 0:02:38]}  cxd4 {[%clk 0:02:34]} 12. exd4 {[%clk 0:02:37]}  dxc4 {[%clk 0:02:34]} 13. Bxc4 {[%clk 0:02:38]}  Nb4 {[%clk 0:02:28]} 14. Ne5 {[%clk 0:02:35]}  Nbd5 {[%clk 0:02:24]} 15. Nxd5 {[%clk 0:02:25]}  Bxd5 {[%clk 0:02:12]} 16. Bb5 {[%clk 0:02:22]}  Rc8 {[%clk 0:02:05]} 17. Qa4 {[%clk 0:02:16]}  a5 {[%clk 0:01:53]} 18. Nc6 {[%clk 0:02:12]}  Bxc6 {[%clk 0:01:49]} 19. Bxc6 {[%clk 0:02:13]}  Bd6 {[%clk 0:01:47]} 20. Be5 {[%clk 0:02:05]}  Ng4 {[%clk 0:01:23]} 21. Rfd1 {[%clk 0:01:40]}  f6 {[%clk 0:00:25]} 22. Bg3 {[%clk 0:01:29]}  Bxg3 {[%clk 0:00:22]} 23. hxg3 {[%clk 0:01:30]}  Qd6 {[%clk 0:00:18]} 24. Bf3 {[%clk 0:01:21]}  h5 {[%clk 0:00:16]} 25. Bxg4 {[%clk 0:01:06]}  hxg4 {[%clk 0:00:17]} 26. d5 {[%clk 0:01:06]}  Rxc1 {[%clk 0:00:13]} 27. Rxc1 {[%clk 0:01:07]}  Qxd5 {[%clk 0:00:14]} 28. Qxg4 {[%clk 0:01:08]}  Qxa2 {[%clk 0:00:12]} 29. Rc7 {[%clk 0:01:06]}  Rf7 {[%clk 0:00:12]} 30. Rc8+ {[%clk 0:01:05]}  Rf8 {[%clk 0:00:12]} 31. Rc6 {[%clk 0:00:57]}  Qd5 {[%clk 0:00:10]} 32. Rxb6 {[%clk 0:00:52]}  e5 {[%clk 0:00:09]} 33. Ra6 {[%clk 0:00:48]}  Rb8 {[%clk 0:00:07]} 34. Ra7 {[%clk 0:00:46]}  g5 {[%clk 0:00:06]} 35. Qh5 {[%clk 0:00:42]}  Rb7 {[%clk 0:00:04]} 36. Ra8+ {[%clk 0:00:39]}  Kg7 {[%clk 0:00:04]} 37. Qh8+ {[%clk 0:00:39]}  Kg6 {[%clk 0:00:05]} 38. Rg8+ {[%clk 0:00:32]}  Kf5 {[%clk 0:00:04]} 39. g4+ {[%clk 0:00:30]}  Ke4 {[%clk 0:00:00]} 40. Rd8 {[%clk 0:00:21]} 1-0


[Site "https://www.chess.com"]

[Event "Titled Tuesday Blitz May 16 Late 2023"]
[White "Kokoszczynski, Jan"]
[Black "Krasteva, Beloslava"]
[WhiteFideId "1174460"]
[BlackFideId "2922029"]
[WhiteElo "2139"]
[BlackElo "2187"]
[Result "1-0"]
[Round "05"]
[TimeControl "180+2"]
[Date "2023.05.16"]
[WhiteClock "0:00:05"]
[BlackClock "0:00:00"]

1. Nf3 {[%clk 0:02:59]}  d5 {[%clk 0:02:35]} 2. e3 {[%clk 0:02:59]}  Nf6 {[%clk 0:02:32]} 3. c4 {[%clk 0:02:59]}  e6 {[%clk 0:02:31]} 4. b3 {[%clk 0:02:55]}  c5 {[%clk 0:02:29]} 5. Bb2 {[%clk 0:02:51]}  Nc6 {[%clk 0:02:29]} 6. cxd5 {[%clk 0:02:50]}  exd5 {[%clk 0:02:29]} 7. Bb5 {[%clk 0:02:50]}  a6 {[%clk 0:02:28]} 8. Bxc6+ {[%clk 0:02:49]}  bxc6 {[%clk 0:02:29]} 9. d4 {[%clk 0:02:48]}  cxd4 {[%clk 0:02:28]} 10. Nxd4 {[%clk 0:02:48]}  c5 {[%clk 0:02:22]} 11. Nf3 {[%clk 0:02:48]}  Be7 {[%clk 0:02:19]} 12. Nbd2 {[%clk 0:02:46]}  O-O {[%clk 0:02:18]} 13. O-O {[%clk 0:02:46]}  Bb7 {[%clk 0:02:14]} 14. Rc1 {[%clk 0:02:44]}  Rc8 {[%clk 0:02:12]} 15. Qe2 {[%clk 0:02:36]}  Qd6 {[%clk 0:02:05]} 16. Rfd1 {[%clk 0:02:35]}  Qe6 {[%clk 0:02:05]} 17. Ne5 {[%clk 0:02:11]}  Rfe8 {[%clk 0:01:59]} 18. h3 {[%clk 0:02:04]}  Bd6 {[%clk 0:01:57]} 19. Ndf3 {[%clk 0:01:58]}  d4 {[%clk 0:01:45]} 20. Nc4 {[%clk 0:01:31]}  Bb8 {[%clk 0:01:33]} 21. Qf1 {[%clk 0:00:54]}  Bxf3 {[%clk 0:00:49]} 22. gxf3 {[%clk 0:00:54]}  Qf5 {[%clk 0:00:44]} 23. Qg2 {[%clk 0:00:50]}  Re6 {[%clk 0:00:30]} 24. e4 {[%clk 0:00:18]}  Qf4 {[%clk 0:00:29]} 25. Rc2 {[%clk 0:00:15]}  Nh5 {[%clk 0:00:28]} 26. Bc1 {[%clk 0:00:15]}  Qc7 {[%clk 0:00:26]} 27. Kf1 {[%clk 0:00:15]}  Rg6 {[%clk 0:00:25]} 28. Qh1 {[%clk 0:00:15]}  Nf4 {[%clk 0:00:18]} 29. e5 {[%clk 0:00:13]}  Nd5 {[%clk 0:00:17]} 30. f4 {[%clk 0:00:11]}  Qd7 {[%clk 0:00:15]} 31. Rd3 {[%clk 0:00:04]}  Qf5 {[%clk 0:00:13]} 32. Qf3 {[%clk 0:00:03]}  Nc3 {[%clk 0:00:10]} 33. Bd2 {[%clk 0:00:02]}  Ne4 {[%clk 0:00:09]} 34. Be1 {[%clk 0:00:02]}  Re8 {[%clk 0:00:04]} 35. Re2 {[%clk 0:00:03]}  Nc3 {[%clk 0:00:04]} 36. Bxc3 {[%clk 0:00:03]}  dxc3 {[%clk 0:00:03]} 37. Rxc3 {[%clk 0:00:04]}  Qb1+ {[%clk 0:00:03]} 38. Re1 {[%clk 0:00:05]}  Qxa2 {[%clk 0:00:02]} 39. Rd3 {[%clk 0:00:06]}  Qc2 {[%clk 0:00:02]} 40. f5 {[%clk 0:00:05]}  Rh6 {[%clk 0:00:01]} 41. e6 {[%clk 0:00:04]}  fxe6 {[%clk 0:00:01]} 42. fxe6 {[%clk 0:00:05]}  Kh8 {[%clk 0:00:00]} 43. e7 {[%clk 0:00:05]} 1-0


[Site "https://www.chess.com"]

[Event "Titled Tuesday Blitz May 16 Late 2023"]
[White "Safin, Robert"]
[Black "Kovacevic, Radmila"]
[WhiteFideId "34189120"]
[BlackFideId "933171"]
[WhiteElo "2295"]
[BlackElo "2194"]
[Result "1-0"]
[Round "05"]
[TimeControl "180+2"]
[Date "2023.05.16"]
[WhiteClock "0:00:37"]
[BlackClock "0:00:06"]

1. e4 {[%clk 0:02:58]}  e5 {[%clk 0:03:00]} 2. Nf3 {[%clk 0:02:56]}  f5 {[%clk 0:03:01]} 3. d3 {[%clk 0:02:53]}  Nc6 {[%clk 0:02:51]} 4. Nc3 {[%clk 0:02:52]}  Nf6 {[%clk 0:02:48]} 5. Bg5 {[%clk 0:02:50]}  Bb4 {[%clk 0:02:38]} 6. Be2 {[%clk 0:02:45]}  d5 {[%clk 0:02:34]} 7. Bxf6 {[%clk 0:02:40]}  gxf6 {[%clk 0:02:32]} 8. exd5 {[%clk 0:02:10]}  Qxd5 {[%clk 0:02:30]} 9. O-O {[%clk 0:02:11]}  Bxc3 {[%clk 0:02:20]} 10. bxc3 {[%clk 0:02:10]}  Rg8 {[%clk 0:02:20]} 11. Nh4 {[%clk 0:02:05]}  Qc5 {[%clk 0:02:13]} 12. Qd2 {[%clk 0:01:55]}  f4 {[%clk 0:02:12]} 13. Rab1 {[%clk 0:01:47]}  b6 {[%clk 0:02:03]} 14. Bh5+ {[%clk 0:01:43]}  Ke7 {[%clk 0:01:53]} 15. Bf3 {[%clk 0:01:41]}  Be6 {[%clk 0:01:40]} 16. d4 {[%clk 0:01:31]}  Qa5 {[%clk 0:01:07]} 17. Bxc6 {[%clk 0:01:27]}  Rad8 {[%clk 0:00:57]} 18. Rfe1 {[%clk 0:01:25]}  Rxd4 {[%clk 0:00:55]} 19. Qe2 {[%clk 0:01:10]}  Qxc3 {[%clk 0:00:53]} 20. Be4 {[%clk 0:01:05]}  Bg4 {[%clk 0:00:48]} 21. f3 {[%clk 0:00:52]}  Be6 {[%clk 0:00:27]} 22. Red1 {[%clk 0:00:50]}  Bxa2 {[%clk 0:00:17]} 23. Nf5+ {[%clk 0:00:48]}  Kf8 {[%clk 0:00:16]} 24. Nxd4 {[%clk 0:00:48]}  Bxb1 {[%clk 0:00:15]} 25. Ne6+ {[%clk 0:00:48]}  Ke7 {[%clk 0:00:15]} 26. Qb5 {[%clk 0:00:40]}  Qe3+ {[%clk 0:00:09]} 27. Kh1 {[%clk 0:00:39]}  Kxe6 {[%clk 0:00:06]} 28. Qd7# {[%clk 0:00:37]} 1-0


[Site "https://www.chess.com"]

[Event "Titled Tuesday Blitz May 16 Late 2023"]
[White "Djordjevic, Dejan N"]
[Black "Altman, Joshua"]
[WhiteFideId "913316"]
[BlackFideId "426210"]
[WhiteElo "2261"]
[BlackElo "2028"]
[Result "1-0"]
[Round "05"]
[TimeControl "180+2"]
[Date "2023.05.16"]
[WhiteClock "0:00:38"]
[BlackClock "0:00:03"]

1. e4 {[%clk 0:03:00]}  e6 {[%clk 0:02:58]} 2. d3 {[%clk 0:03:00]}  d5 {[%clk 0:02:59]} 3. Nd2 {[%clk 0:03:00]}  Nf6 {[%clk 0:02:59]} 4. Ngf3 {[%clk 0:03:01]}  c5 {[%clk 0:02:59]} 5. c3 {[%clk 0:03:00]}  Nc6 {[%clk 0:02:59]} 6. g3 {[%clk 0:03:00]}  Be7 {[%clk 0:03:00]} 7. Bg2 {[%clk 0:03:00]}  Qc7 {[%clk 0:03:00]} 8. O-O {[%clk 0:03:00]}  b6 {[%clk 0:03:00]} 9. Re1 {[%clk 0:03:00]}  Bb7 {[%clk 0:03:00]} 10. e5 {[%clk 0:02:56]}  Nd7 {[%clk 0:03:00]} 11. Qe2 {[%clk 0:02:56]}  h6 {[%clk 0:03:00]} 12. h4 {[%clk 0:02:56]}  O-O-O {[%clk 0:03:00]} 13. a4 {[%clk 0:02:55]}  a5 {[%clk 0:02:59]} 14. b3 {[%clk 0:02:54]}  g5 {[%clk 0:02:57]} 15. d4 {[%clk 0:02:53]}  g4 {[%clk 0:02:52]} 16. Nh2 {[%clk 0:02:50]}  cxd4 {[%clk 0:02:52]} 17. cxd4 {[%clk 0:02:48]}  Nxd4 {[%clk 0:02:51]} 18. Qxg4 {[%clk 0:02:42]}  Nc2 {[%clk 0:02:51]} 19. Bb2 {[%clk 0:02:38]}  Nxa1 {[%clk 0:02:46]} 20. Bxa1 {[%clk 0:02:36]}  Kb8 {[%clk 0:02:40]} 21. Nhf3 {[%clk 0:02:25]}  Nc5 {[%clk 0:02:33]} 22. Bf1 {[%clk 0:02:11]}  Rhg8 {[%clk 0:02:27]} 23. Qf4 {[%clk 0:02:11]}  Bf8 {[%clk 0:02:06]} 24. Nd4 {[%clk 0:02:10]}  Bg7 {[%clk 0:01:53]} 25. Nb5 {[%clk 0:02:00]}  Qe7 {[%clk 0:01:44]} 26. Bd4 {[%clk 0:01:59]}  Rd7 {[%clk 0:01:14]} 27. Re3 {[%clk 0:01:43]}  Bf8 {[%clk 0:01:07]} 28. Nd6 {[%clk 0:01:38]}  Bc6 {[%clk 0:00:58]} 29. Rc3 {[%clk 0:01:31]}  Qd8 {[%clk 0:00:39]} 30. Nxf7 {[%clk 0:01:16]}  Qc7 {[%clk 0:00:35]} 31. Nd6 {[%clk 0:01:14]}  Bxd6 {[%clk 0:00:19]} 32. exd6 {[%clk 0:01:14]}  Qa7 {[%clk 0:00:19]} 33. Be5 {[%clk 0:01:04]}  Rc8 {[%clk 0:00:17]} 34. Qxh6 {[%clk 0:01:00]}  Qb7 {[%clk 0:00:10]} 35. Bd4 {[%clk 0:00:58]}  Ka8 {[%clk 0:00:06]} 36. Nf3 {[%clk 0:00:58]}  Rxd6 {[%clk 0:00:06]} 37. Ne5 {[%clk 0:00:55]}  Ne4 {[%clk 0:00:06]} 38. Rf3 {[%clk 0:00:50]}  Rdd8 {[%clk 0:00:05]} 39. Rf7 {[%clk 0:00:49]}  Rc7 {[%clk 0:00:05]} 40. Rxc7 {[%clk 0:00:46]}  Qxc7 {[%clk 0:00:06]} 41. Qxe6 {[%clk 0:00:45]}  Rd6 {[%clk 0:00:05]} 42. Qg8+ {[%clk 0:00:43]}  Kb7 {[%clk 0:00:06]} 43. Nxc6 {[%clk 0:00:43]}  Qxc6 {[%clk 0:00:06]} 44. Be5 {[%clk 0:00:39]}  Re6 {[%clk 0:00:03]} 45. Qb8# {[%clk 0:00:38]} 1-0


[Site "https://www.chess.com"]